fUST/lending_fUST_20250212
["ID","MTS","AMOUNT","RATE_DAILY","PERIOD"]
[352823406,1739347846281,-500.0,0.00013635,2]
[352823407,1739347846291,-500.0,0.00013635,2]
[352823408,1739347846301,-776.33,0.00013635,2]
[352823409,1739347846310,-1052.12,0.00013635,2]
[352823410,1739347846350,-623.5,0.00013635,2]
[352823411,1739347846360,-500.0,0.00013635,2]
[352823412,1739347846369,-1165.56,0.00013635,2]
[352823413,1739347846378,-500.0,0.00013635,2]
[352823414,1739347846387,-500.0,0.00013635,2]
[352823415,1739347846397,-337.5,0.00013635,2]
[352823416,1739347846408,-500.0,0.00013635,2]
[352823417,1739347846421,-500.0,0.00013635,2]
[352823419,1739347846431,-500.0,0.00013636,2]
[352823420,1739347846441,-500.0,0.00013636,2]
[352823421,1739347846452,-500.0,0.00013636,2]
[352823422,1739347846461,-500.0,0.00013636,2]
[352823423,1739347846473,-500.0,0.00013636,2]
[352823425,1739347846483,-500.0,0.00013636,2]
[352823426,1739347846492,-541.75,0.00013636,2]
[352823427,1739347846501,-848.7,0.00013636,2]
[352823428,1739347846511,-6626.76,0.00013636,2]
[352823429,1739347846521,-617.47,0.00013636,2]
[352823430,1739347846531,-2407.35,0.00013636,2]
[352823431,1739347846542,-500.0,0.00013636,2]
[352823432,1739347846552,-500.0,0.00013636,2]
[352823433,1739347846562,-500.0,0.00013639,2]
[352823434,1739347846571,-500.0,0.00013639,2]
[352823435,1739347846581,-1000.0,0.00013698,2]
[352823436,1739347846591,-1084.16513233,0.00013698,2]
[352823437,1739347846602,-500.23501456,0.00013698,2]
[352823438,1739347846611,-579.502085,0.00013699,2]
[352823439,1739347846621,-205.7548,0.00013699,2]
[352823440,1739347846632,-2803.4169963,0.00013699,2]
[352823441,1739347846642,-1027.673598,0.00013699,2]
[352823442,1739347846652,-204.91609417,0.00013699,2]
[352823443,1739347846662,-500.0,0.00013699,2]
[352823444,1739347846672,-500.0,0.00013699,2]
[352823445,1739347846682,-500.0,0.00013699,2]
[352823446,1739347846697,-500.0,0.00013699,2]
[352823447,1739347846707,-500.0,0.00013699,2]
[352823448,1739347846717,-500.0,0.00013699,2]
[352823449,1739347846728,-500.0,0.00013699,2]
[352823450,1739347846738,-500.0,0.00013699,2]
[352823451,1739347846748,-505.29176276,0.00013699,2]
[352823452,1739347846759,-500.0,0.00013699,2]
[352823453,1739347846769,-500.0,0.00013699,2]
[352823454,1739347846779,-500.0,0.00013699,2]
[352823455,1739347846790,-500.0,0.00013699,2]
[352823456,1739347846800,-500.0,0.00013699,2]
[352823457,1739347846809,-500.0,0.00013699,2]
[352823458,1739347846819,-500.0,0.00013699,2]
[352823459,1739347846828,-500.0,0.00013699,2]
[352823460,1739347846838,-500.0,0.00013699,2]
[352823461,1739347846847,-500.0,0.00013699,2]
[352823462,1739347846858,-500.0,0.00013699,2]
[352823463,1739347846867,-500.0,0.00013699,2]
[352823464,1739347846878,-500.0,0.00013699,2]
[352823465,1739347846889,-500.0,0.00013699,2]
[352823466,1739347846898,-500.0,0.00013699,2]
[352823467,1739347846908,-500.0,0.00013699,2]
[352823468,1739347846918,-500.0,0.00013699,2]
[352823469,1739347846927,-500.0,0.00013699,2]
[352823470,1739347846937,-500.0,0.00013699,2]
[352823471,1739347846948,-500.0,0.00013699,2]
[352823472,1739347846958,-500.0,0.00013699,2]
[352823474,1739347846969,-500.0,0.00013699,2]
[352823475,1739347846978,-500.0,0.00013699,2]
[352823476,1739347846988,-500.0,0.00013699,2]
[352823477,1739347846997,-500.0,0.00013699,2]
[352823478,1739347847007,-500.0,0.00013699,2]
[352823479,1739347847017,-500.0,0.00013699,2]
[352823480,1739347847026,-500.0,0.00013699,2]
[352823481,1739347847036,-500.0,0.00013699,2]
[352823482,1739347847045,-500.0,0.00013699,2]
[352823483,1739347847055,-200.0,0.00013699,2]
[352823484,1739347847065,-500.0,0.00013772,2]
[352823485,1739347847075,-500.0,0.00013772,2]
[352823486,1739347847084,-500.0,0.00013772,2]
[352823487,1739347847093,-776.33,0.00013772,2]
[352823488,1739347847103,-1052.12,0.00013772,2]
[352823489,1739347847113,-623.5,0.00013772,2]
[352823490,1739347847123,-500.0,0.00013772,2]
[352823491,1739347847133,-1165.56,0.00013772,2]
[352823492,1739347847143,-500.0,0.00013772,2]
[352823493,1739347847152,-500.0,0.00013772,2]
[352823494,1739347847162,-500.0,0.00013772,2]
[352823495,1739347847171,-500.0,0.00013772,2]
[352823496,1739347847180,-500.0,0.00013773,2]
[352823497,1739347847190,-500.0,0.00013773,2]
[352823498,1739347847199,-500.0,0.00013773,2]
[352823499,1739347847208,-500.0,0.00013773,2]
[352823500,1739347847218,-500.0,0.00013773,2]
[352823501,1739347847227,-541.75,0.00013773,2]
[352823502,1739347847237,-848.7,0.00013773,2]
[352823503,1739347847247,-6626.76,0.00013773,2]
[352823504,1739347847262,-2407.35,0.00013773,2]
[352823505,1739347847271,-500.0,0.00013773,2]
[352823506,1739347847281,-500.0,0.00013773,2]
[352823507,1739347847291,-500.0,0.00013776,2]
[352823508,1739347847300,-500.0,0.00013776,2]
[352823509,1739347847310,-500.0,0.00013909,2]
[352823510,1739347847320,-500.0,0.00013909,2]
[352823511,1739347847329,-277.59,0.00013909,2]
[352823512,1739347847339,-776.33,0.00013909,2]
[352823513,1739347847348,-1052.12,0.00013909,2]
[352823514,1739347847358,-623.5,0.00013909,2]
[352823515,1739347847367,-500.0,0.00013909,2]
[352823516,1739347847377,-1165.56,0.00013909,2]
[352823517,1739347847387,-500.0,0.00013909,2]
[352823518,1739347847396,-500.0,0.00013909,2]
[352823519,1739347847406,-500.0,0.00013909,2]
[352823520,1739347847416,-432.04,0.00013909,2]
[352823521,1739347847427,-500.0,0.0001391,2]
[352823522,1739347847437,-500.0,0.0001391,2]
[352823523,1739347847447,-136.5225874,0.0001391,2]
[352823524,1739347847802,-157.946614,0.0001128,2]
[352823525,1739347847812,-157.946614,0.00011289,2]
[352823526,1739347847822,-500.0,0.00012129,2]
[352823527,1739347847833,-363.4774126,0.0001391,2]
[352823528,1739347847843,-500.0,0.0001391,2]
[352823529,1739347847853,-500.0,0.0001391,2]
[352823530,1739347847863,-541.75,0.0001391,2]
[352823531,1739347847872,-848.7,0.0001391,2]
[352823532,1739347847882,-6626.76,0.0001391,2]
[352823533,1739347847892,-2407.35,0.0001391,2]
[352823534,1739347847902,-591.8,0.0001391,2]
[352823535,1739347847913,-500.0,0.0001391,2]
[352823536,1739347847923,-500.0,0.00013913,2]
[352823537,1739347847932,-296.8,0.00013913,2]
[352823538,1739347847942,-487.535,0.00013992,2]
[352823539,1739347847952,-500.0,0.00014046,2]
[352823540,1739347847963,-500.0,0.00014046,2]
[352823541,1739347847975,-776.33,0.00014046,2]
[352823542,1739347847984,-1052.12,0.00014046,2]
[352823543,1739347847994,-623.5,0.00014046,2]
[352823544,1739347848004,-500.0,0.00014046,2]
[352823545,1739347848015,-1165.56,0.00014046,2]
[352823546,1739347848026,-500.0,0.00014046,2]
[352823547,1739347848036,-500.0,0.00014046,2]
[352823548,1739347848047,-500.0,0.00014046,2]
[352823549,1739347848057,-500.0,0.00014047,2]
[352823550,1739347848068,-500.0,0.00014047,2]
[352823551,1739347848078,-500.0,0.00014047,2]
[352823552,1739347848088,-500.0,0.00014047,2]
[352823553,1739347848098,-500.0,0.00014047,2]
[352823554,1739347848108,-541.75,0.00014047,2]
[352823555,1739347848118,-848.7,0.00014047,2]
[352823556,1739347848128,-2237.36422669,0.00014047,2]
[352823557,1739347848141,-4389.39577331,0.00014047,2]
[352823558,1739347848152,-2407.35,0.00014047,2]
[352823559,1739347848163,-589.27316454,0.00014047,2]
[352823560,1739347848173,-500.0,0.0001405,2]
[352823561,1739347848183,-643.70492554,0.00014128,2]
[352823562,1739347848194,-502.14316149,0.00014146,2]
[352823563,1739347848204,-500.0,0.00014183,2]
[352823564,1739347848214,-500.0,0.00014183,2]
[352823565,1739347848225,-776.33,0.00014183,2]
[352823566,1739347848235,-1052.12,0.00014183,2]
[352823567,1739347848249,-623.5,0.00014183,2]
[352823568,1739347848260,-500.0,0.00014183,2]
[352823569,1739347848271,-1165.56,0.00014183,2]
[352823570,1739347848280,-500.0,0.00014183,2]
[352823571,1739347848291,-500.0,0.00014183,2]
[352823572,1739347848300,-269.83,0.00014183,2]
[352823573,1739347848310,-500.0,0.00014184,2]
[352823574,1739347848320,-500.0,0.00014184,2]
[352823575,1739347848331,-500.0,0.00014184,2]
[352823576,1739347848343,-500.0,0.00014184,2]
[352823577,1739347848354,-500.0,0.00014184,2]
[352823578,1739347848364,-541.75,0.00014184,2]
[352823579,1739347848375,-848.7,0.00014184,2]
[352823580,1739347848386,-4135.20578012,0.00014184,2]
[352823581,1739347850170,-1759.62972673,0.00014184,2]
[352823582,1739347850231,-731.92449315,0.00014184,2]
[352823583,1739347850241,-2407.35,0.00014184,2]
[352823584,1739347850255,-500.0,0.00014187,2]
[352823585,1739347850265,-500.0,0.0001432,2]
[352823586,1739347850275,-500.0,0.0001432,2]
[352823587,1739347850286,-776.33,0.0001432,2]
[352823588,1739347850296,-1052.12,0.0001432,2]
[352823589,1739347850305,-623.5,0.0001432,2]
[352823590,1739347850315,-500.0,0.0001432,2]
[352823591,1739347850326,-1165.56,0.0001432,2]
[352823592,1739347850335,-605.59578792,0.0001432,2]
[352823593,1739347850346,-500.0,0.0001432,2]
[352823594,1739347850356,-500.0,0.00014321,2]
[352823595,1739347850366,-500.0,0.00014321,2]
[352823596,1739347850375,-500.0,0.00014321,2]
[352823597,1739347850385,-487.09,0.00014321,2]
[352823598,1739347850394,-500.0,0.00014321,2]
[352823599,1739347850403,-541.75,0.00014321,2]
[352823600,1739347850412,-848.7,0.00014321,2]
[352823601,1739347850422,-5511.87971893,0.00014321,2]
[352823602,1739347850434,-1114.88028107,0.00014321,2]
[352823603,1739347850444,-2407.35,0.00014321,2]
[352823604,1739347850454,-500.0,0.00014324,2]
[352823605,1739347850463,-500.0,0.00014457,2]
[352823606,1739347850474,-500.0,0.00014457,2]
[352823607,1739347850483,-776.33,0.00014457,2]
[352823608,1739347850492,-1052.12,0.00014457,2]
[352823609,1739347850502,-623.5,0.00014457,2]
[352823610,1739347850512,-500.0,0.00014457,2]
[352823611,1739347850521,-1165.56,0.00014457,2]
[352823612,1739347850531,-500.0,0.00014457,2]
[352823613,1739347850541,-286.9,0.00014458,2]
[352823614,1739347850551,-500.0,0.00014458,2]
[352823615,1739347850560,-500.0,0.00014458,2]
[352823616,1739347850569,-500.0,0.00014458,2]
[352823617,1739347850579,-541.75,0.00014458,2]
[352823618,1739347850588,-848.7,0.00014458,2]
[352823619,1739347850598,-6626.76,0.00014458,2]
[352823620,1739347850607,-2407.35,0.00014458,2]
[352823621,1739347850616,-237.16030536,0.00014461,2]
[352823622,1739347850626,-153.0,0.00014519,2]
[352823623,1739347850635,-153.0,0.00014519,2]
[352823624,1739347850645,-153.0,0.00014519,2]
[352823625,1739347850655,-153.0,0.00014519,2]
[352823626,1739347850665,-153.0,0.00014519,2]
[352823627,1739347850675,-153.0,0.00014519,2]
[352823628,1739347850685,-153.0,0.00014519,2]
[352823629,1739347850695,-153.0,0.00014519,2]
[352823630,1739347850705,-153.0,0.0001452,2]
[352823631,1739347850715,-153.0,0.0001452,2]
[352823632,1739347850724,-153.0,0.0001452,2]
[352823633,1739347850734,-153.0,0.0001452,2]
[352823634,1739347850743,-153.0,0.0001452,2]
[352823635,1739347850754,-153.0,0.0001452,2]
[352823636,1739347850764,-153.0,0.0001452,2]
[352823637,1739347850774,-153.0,0.00014524,2]
[352823638,1739347850783,-153.0,0.00014524,2]
[352823639,1739347850793,-153.0,0.00014524,2]
[352823640,1739347850802,-153.0,0.00014524,2]
[352823641,1739347850812,-153.0,0.00014524,2]
[352823642,1739347850822,-153.0,0.00014524,2]
[352823643,1739347850831,-153.0,0.00014524,2]
[352823644,1739347850841,-153.0,0.00014524,2]
[352823645,1739347850851,-500.0,0.00014594,2]
[352823646,1739347850861,-500.0,0.00014594,2]
[352823647,1739347850871,-776.33,0.00014594,2]
[352823648,1739347850881,-1052.12,0.00014594,2]
[352823649,1739347850891,-623.5,0.00014594,2]
[352823650,1739347850900,-500.0,0.00014594,2]
[352823651,1739347850910,-1165.56,0.00014594,2]
[352823652,1739347850919,-500.0,0.00014594,2]
[352823653,1739347850929,-500.0,0.00014595,2]
[352823654,1739347850938,-171.96,0.00014595,2]
[352823655,1739347850947,-500.0,0.00014595,2]
[352823656,1739347850957,-541.75,0.00014595,2]
[352823657,1739347850966,-848.7,0.00014595,2]
[352823658,1739347850976,-6626.76,0.00014595,2]
[352823659,1739347850986,-2407.35,0.00014595,2]
[352823660,1739347850995,-500.0,0.00014731,2]
[352823661,1739347851005,-500.0,0.00014731,2]
[352823662,1739347851014,-776.33,0.00014731,2]
[352823663,1739347851024,-1052.12,0.00014731,2]
[352823664,1739347851033,-623.5,0.00014731,2]
[352823665,1739347851043,-500.0,0.00014731,2]
[352823666,1739347851052,-1165.56,0.00014731,2]
[352823667,1739347851062,-500.0,0.00014731,2]
[352823668,1739347851071,-160.05648958,0.00014731,2]
[352823669,1739347851080,-500.0,0.00014732,2]
[352823670,1739347851089,-500.0,0.00014732,2]
[352823671,1739347851099,-541.75,0.00014732,2]
[352823672,1739347851108,-848.7,0.00014732,2]
[352823673,1739347851117,-3645.86726002,0.00014732,2]
[352823674,1739347851163,-2980.89273998,0.00014732,2]
[352823675,1739347851172,-2407.35,0.00014732,2]
[352823676,1739347851181,-404.458,0.00014765,2]
[352823677,1739347851190,-643.70492554,0.00014827,2]
[352823678,1739347851200,-500.0,0.00014868,2]
[352823679,1739347851209,-500.0,0.00014868,2]
[352823680,1739347851218,-776.33,0.00014868,2]
[352823681,1739347851227,-1052.12,0.00014868,2]
[352823682,1739347851236,-623.5,0.00014868,2]
[352823683,1739347851245,-489.405,0.00014868,2]
[352823684,1739347851257,-1165.56,0.00014868,2]
[352823685,1739347851266,-537.62559758,0.00014868,2]
[352823686,1739347851275,-500.0,0.00014869,2]
[352823687,1739347851284,-361.12,0.00014869,2]
[352823688,1739347851294,-541.75,0.00014869,2]
[352823689,1739347851303,-848.7,0.00014869,2]
[352823690,1739347851313,-6626.76,0.00014869,2]
[352823691,1739347851323,-2407.35,0.00014869,2]
[352823692,1739347851334,-168.27,0.00014999,2]
[352823693,1739347851343,-168.27,0.00014999,2]
[352823694,1739347851352,-168.27,0.00014999,2]
[352823695,1739347851360,-168.27,0.00014999,2]
[352823696,1739347851370,-168.27,0.00014999,2]
[352823697,1739347851379,-168.30861989,0.00014999,2]
[352823698,1739347851387,-300.0,0.00015,5]
[352823699,1739347851396,-500.0,0.00015005,2]
[352823700,1739347851405,-500.0,0.00015005,2]
[352823701,1739347851415,-776.33,0.00015005,2]
[352823702,1739347851424,-1052.12,0.00015005,2]
[352823703,1739347851433,-623.5,0.00015005,2]
[352823704,1739347851443,-1165.56,0.00015005,2]
[352823705,1739347851452,-634.05,0.00015006,2]
[352823706,1739347851462,-541.75,0.00015006,2]
[352823707,1739347851471,-848.7,0.00015006,2]
[352823708,1739347851481,-6626.76,0.00015006,2]
[352823709,1739347851490,-2407.35,0.00015006,2]
[352823710,1739347851499,-150.491,0.00015025,2]
[352823711,1739347851508,-540.67,0.00015025,2]
[352823712,1739347851517,-1971.0,0.00015025,2]
[352823713,1739347851526,-2297.0,0.00015025,2]
[352823714,1739347851535,-166.0,0.00015068,2]
[352823715,1739347851544,-154.591,0.000151,2]
[352823716,1739347851554,-500.0,0.00015142,2]
[352823717,1739347851563,-500.0,0.00015142,2]
[352823718,1739347851572,-776.33,0.00015142,2]
[352823719,1739347851586,-1052.12,0.00015142,2]
[352823720,1739347851595,-623.5,0.00015142,2]
[352823721,1739347851605,-1165.56,0.00015142,2]
[352823722,1739347851614,-541.75,0.00015143,2]
[352823723,1739347851623,-848.7,0.00015143,2]
[352823724,1739347851633,-6626.76,0.00015143,2]
[352823725,1739347851643,-2407.35,0.00015143,2]
[352823726,1739347851652,-523.13032133,0.00015153,2]
[352823727,1739347851662,-500.0,0.00015153,2]
[352823728,1739347851671,-452.2699499,0.00015279,2]
[352823729,1739347851680,-220.8579993,0.00015279,2]
[352823730,1739347851689,-776.35,0.00015279,2]
[352823731,1739347851698,-1052.23854722,0.00015279,2]
[352823732,1739347851711,-623.67943141,0.00015279,2]
[352823733,1739347851721,-1165.77,0.00015279,2]
[352823734,1739347851730,-541.96065621,0.0001528,2]
[352823735,1739347851739,-848.85687894,0.0001528,2]
[352823736,1739347851749,-6626.8612,0.0001528,2]
[352823737,1739347851758,-2407.57586109,0.0001528,2]
[352823738,1739347851768,-162.568969,0.00015356,2]
[352823739,1739347851777,-1686.51,0.000154,2]
[352823740,1739347851786,-643.70492554,0.00015527,2]
[352823741,1739347851796,-12204.29774027,0.00015593,2]
[352823742,1739347851806,-484.73029161,0.00015701,2]
[352823743,1739347851816,-792.60572832,0.0001579,2]
[352823744,1739347851825,-500.0,0.0001582,2]
[352823745,1739347851836,-610.86483714,0.00015873,2]
[352823746,1739347851845,-151.0,0.00015888,2]
[352823747,1739347851855,-500.17388534,0.00015889,5]
[352823748,1739347851865,-665357.55633444,0.0001589,7]
[352823749,1739347852035,-153.0,0.00014517,2]
[352823750,1739347852048,-153.0,0.00014517,2]
[352823751,1739347852058,-153.0,0.00014517,2]
[352823752,1739347852067,-153.0,0.00014517,2]
[352823753,1739347852077,-1449.07019918,0.0001589,7]
[352823760,1739348833137,-3847.27476429,0.00010578,2]
[352823761,1739348833160,-400.0,0.00010685,2]
[352823762,1739348833182,-260.41316501,0.00012028,2]
[352823763,1739348833203,-500.0,0.0001308,2]
[352823764,1739348833225,-463.601668,0.00013699,2]
[352823765,1739348833246,-292.9900217,0.0001394,2]
[352823766,1739348833267,-153.0,0.00014514,2]
[352823767,1739348833289,-153.0,0.00014514,2]
[352823768,1739348833316,-153.0,0.00014514,2]
[352823769,1739348833520,-153.0,0.00014524,2]
[352823770,1739348833541,-166.0,0.00015068,2]
[352823771,1739348833562,-171.17,0.00015084,2]
[352823772,1739348833583,-396.0,0.00015114,2]
[352823773,1739348833608,-377.0080862,0.00015178,2]
[352823774,1739348833633,-443.824,0.00015206,2]
[352823775,1739348833657,-170.07663507,0.00015351,2]
[352823788,1739348963178,-500.0,0.0001308,2]
[352823789,1739348963201,-11807.85366069,0.000135,2]
[352823833,1739349032203,-500.0,0.0001308,2]
[352823834,1739349032213,-9066.70543557,0.000135,2]
[352823835,1739349032223,-157.909658,0.00013977,2]
[352823836,1739349032233,-157.909658,0.00014047,2]
[352823837,1739349032244,-513.836799,0.00014152,2]
[352823838,1739349032254,-153.0,0.00014509,2]
[352823839,1739349032263,-153.0,0.00014509,2]
[352823840,1739349032272,-153.0,0.00014509,2]
[352823841,1739349032283,-153.0,0.0001451,2]
[352823842,1739349032292,-153.0,0.0001451,2]
[352823843,1739349032301,-153.0,0.0001451,2]
[352823844,1739349032310,-153.0,0.00014512,2]
[352823845,1739349032319,-153.0,0.00014512,2]
[352823846,1739349032328,-153.0,0.00014512,2]
[352823847,1739349032337,-815.89865181,0.00015,2]
[352823848,1739349032346,-24373.70280945,0.00015,2]
[352823849,1739349032355,-354.9109976,0.00015178,2]
[352823850,1739349032364,-306.3457281,0.00015452,2]
[352823851,1739349032374,-154.6337486,0.00015452,2]
[352823852,1739349032383,-154.7299507,0.00015452,2]
[352823853,1739349032393,-153.0,0.00015452,2]
[352823854,1739349032402,-215.8799648,0.00015452,2]
[352823855,1739349032412,-12204.29774028,0.00015453,2]
[352823856,1739349032421,-153.0,0.000155,2]
[352823857,1739349032430,-154.6337486,0.000155,2]
[352823858,1739349032440,-215.8799648,0.000155,2]
[352823859,1739349032449,-154.6337486,0.000155,2]
[352823860,1739349032458,-215.8799648,0.000155,2]
[352823861,1739349032467,-408.02,0.00015509,2]
[352823862,1739349032476,-500.0,0.00015509,2]
[352823863,1739349032485,-500.0,0.00015509,2]
[352823864,1739349032495,-154.48,0.00015509,2]
[352823865,1739349032504,-160.7635079,0.00015509,2]
[352823866,1739349032513,-500.0,0.00015509,2]
[352823867,1739349032522,-500.0,0.00015594,2]
[352823868,1739349032532,-500.0,0.00015594,2]
[352823869,1739349032541,-500.0,0.00015594,2]
[352823870,1739349032550,-500.0,0.00015594,2]
[352823871,1739349032559,-154.6337486,0.000156,2]
[352823872,1739349032569,-215.8799648,0.000156,2]
[352823873,1739349032580,-500.0,0.00015605,2]
[352823874,1739349032590,-500.0,0.00015646,2]
[352823875,1739349032599,-500.0,0.00015646,2]
[352823876,1739349032608,-500.0,0.00015646,2]
[352823877,1739349032617,-500.0,0.00015647,2]
[352823878,1739349032626,-405.78432548,0.00015647,2]
[352823879,1739349032636,-500.0,0.00015647,2]
[352823880,1739349032645,-500.0,0.00015647,2]
[352823881,1739349032655,-671.71266115,0.00015648,2]
[352823882,1739349032664,-154.0,0.00015697,2]
[352823883,1739349032674,-154.0,0.00015697,2]
[352823884,1739349032683,-154.0,0.00015697,2]
[352823885,1739349032697,-154.0,0.00015697,2]
[352823886,1739349032710,-154.0,0.00015697,2]
[352823887,1739349032719,-154.0,0.00015697,2]
[352823888,1739349032730,-154.0,0.00015697,2]
[352823889,1739349032739,-154.0,0.00015697,2]
[352823890,1739349032749,-154.0,0.00015697,2]
[352823891,1739349032758,-154.0,0.00015697,2]
[352823892,1739349032768,-154.0,0.00015697,2]
[352823893,1739349032778,-154.0,0.00015697,2]
[352823894,1739349032787,-154.0,0.00015697,2]
[352823895,1739349032796,-154.0,0.00015697,2]
[352823896,1739349032805,-154.0,0.00015697,2]
[352823897,1739349032814,-154.0,0.00015697,2]
[352823898,1739349032823,-154.0,0.00015697,2]
[352823899,1739349032833,-154.0,0.00015697,2]
[352823900,1739349032842,-160.01,0.00015697,2]
[352823901,1739349032851,-154.0,0.00015697,2]
[352823902,1739349032861,-154.0,0.00015697,2]
[352823903,1739349032871,-155.0,0.00015697,2]
[352823904,1739349032880,-215.8799648,0.000157,2]
[352823905,1739349032889,-153.0,0.000157,2]
[352823906,1739349032899,-354.9109976,0.000157,2]
[352823907,1739349032908,-154.6337486,0.000157,2]
[352823908,1739349032917,-154.6337486,0.000157,2]
[352823909,1739349032927,-354.9109976,0.000157,2]
[352823910,1739349032936,-215.8799648,0.000157,2]
[352823911,1739349032946,-160.92623142,0.0001572,2]
[352823912,1739349032955,-500.0,0.00015731,2]
[352823913,1739349032964,-232.46,0.00015742,2]
[352823914,1739349032973,-671.71266115,0.00015748,2]
[352823915,1739349032983,-500.0,0.00015783,2]
[352823916,1739349032991,-174.82,0.00015784,2]
[352823917,1739349033001,-713.34515556,0.00015797,2]
[352823918,1739349033010,-354.9109976,0.000158,2]
[352823919,1739349033020,-600.0,0.0001582,2]
[352823920,1739349033030,-671.71266115,0.00015848,2]
[352823921,1739349033039,-500.0,0.00015868,2]
[352823922,1739349033048,-160.92623138,0.00015888,2]
[352823923,1739349033059,-500.0,0.00015889,2]
[352823924,1739349033068,-376.2927839,0.00015889,2]
[352823925,1739349033078,-500.0,0.00015889,2]
[352823926,1739349033087,-155.37210376,0.00015889,2]
[352823927,1739349033096,-500.0,0.00015889,2]
[352823928,1739349033107,-500.0,0.00015889,2]
[352823929,1739349033116,-500.0,0.00015889,2]
[352823930,1739349033126,-500.0,0.00015889,2]
[352823931,1739349033135,-270.52917627,0.00015889,2]
[352823932,1739349033145,-377566.43495313,0.0001589,7]
[352823938,1739349037838,-700281.70114471,0.0001589,7]
[352823947,1739349040048,-604.67043978,0.0001589,7]
[352824001,1739349045864,-153.0,0.00014507,2]
[352824002,1739349045873,-153.0,0.00014507,2]
[352824003,1739349045883,-154.6337486,0.00015452,2]
[352824004,1739349045893,-4006.83994105,0.0001589,7]
[352824005,1739349045921,-2405.06608831,0.0001589,7]
[352824007,1739350051134,-1146.68765837,0.00010578,2]
[352824008,1739350051161,-389.248869,0.00010685,2]
[352824009,1739350051187,-473.84908877,0.00012648,2]
[352824010,1739350051211,-500.0,0.0001306,2]
[352824011,1739350051236,-500.0,0.0001308,2]
[352824012,1739350051260,-546.714825,0.00013699,2]
[352824013,1739350051284,-151.01526129,0.00013747,2]
[352824014,1739350051309,-500.0,0.00013747,2]
[352824015,1739350051332,-1667.663495,0.00013774,2]
[352824016,1739350051370,-651.56128131,0.00014258,2]
[352824017,1739350051401,-651.56128131,0.00014358,2]
[352824018,1739350051428,-500.0,0.00014434,2]
[352824019,1739350051458,-651.56128131,0.00014458,2]
[352824020,1739350051487,-201.8681232,0.00014474,2]
[352824021,1739350051514,-22.46527147,0.00014558,2]
[352824045,1739350232253,-300.0,0.0001308,2]
[352824048,1739350232265,-200.0,0.0001308,2]
[352824050,1739350232274,-157.909658,0.0001409,2]
[352824052,1739350232284,-211.55157606,0.00014108,2]
[352824055,1739350232306,-2591.86542024,0.00014108,2]
[352824057,1739350232315,-157.909658,0.0001416,2]
[352824059,1739350232324,-629.09600984,0.00014558,2]
[352824061,1739350232333,-651.56128131,0.00014658,2]
[352824062,1739350232342,-153.0,0.00014661,2]
[352824064,1739350232351,-153.0,0.00014661,2]
[352824066,1739350232361,-153.0,0.00014662,2]
[352824068,1739350232370,-153.0,0.00014662,2]
[352824070,1739350232381,-153.0,0.00014664,2]
[352824072,1739350232390,-153.0,0.00014664,2]
[352824074,1739350232399,-153.0,0.00014665,2]